bitfinex/quotes_BTCUSD_20250406
["timestamp","ask_amount","ask_price","bid_price","bid_amount"]
[1743981536368,0.10832343,77401.0,77400.0,0.13582197]
[1743981536597,0.10832343,77401.0,77400.0,0.12290297]
[1743981536948,0.10832343,77401.0,77390.0,0.271351]
[1743981537149,0.10832343,77401.0,77389.0,0.012921]
[1743981537150,0.10832343,77401.0,77394.0,0.18001653]
[1743981537309,0.10832343,77401.0,77400.0,0.004]
[1743981537516,0.12124243,77401.0,77400.0,0.004]
[1743981537740,0.01405534,77401.0,77400.0,0.007]
[1743981537938,0.35305534,77401.0,77400.0,0.004]
[1743981538586,0.271316,77400.0,77385.0,0.012922]
[1743981538762,0.271326,77398.0,77386.0,0.0297217]
[1743981538965,0.00013634,77401.0,77390.0,0.25843]
[1743981539373,0.00113634,77401.0,77390.0,0.271351]
[1743981539528,0.00113634,77401.0,77387.0,0.12290297]
[1743981539529,0.258397,77400.0,77387.0,0.12290297]
[1743981539717,0.00013634,77401.0,77389.0,0.271355]
[1743981539917,0.001,77398.0,77390.0,0.19204967]
[1743981540140,0.001,77398.0,77391.0,0.012921]
[1743981540371,0.001,77398.0,77392.0,0.13582397]
[1743981540573,0.001,77398.0,77394.0,0.271334]
[1743981540774,0.001,77398.0,77390.0,0.0691467]
[1743981541075,0.258421,77393.0,77380.0,0.012923]
[1743981541279,0.258421,77393.0,77371.0,0.258493]
[1743981541280,0.012922,77385.0,77369.0,0.012925]
[1743981541484,0.012922,77387.0,77370.0,0.40167467]
[1743981541815,0.001,77398.0,77386.0,0.012922]
[1743981541967,0.001,77398.0,77394.0,0.01292]
[1743981542169,0.001,77398.0,77397.0,0.01292]
[1743981542380,0.001,77398.0,77397.0,0.13582297]
[1743981542590,0.001,77398.0,77397.0,0.23080577]
[1743981542763,0.001,77398.0,77397.0,0.23338942]
[1743981542966,0.001,77398.0,77397.0,0.49179642]
[1743981543189,0.001,77398.0,77397.0,0.48921277]
[1743981543555,0.00013634,77401.0,77400.0,0.271316]
[1743981543771,0.00013634,77401.0,77396.0,0.0477]
[1743981543981,0.012922,77386.0,77379.0,0.0710837]
[1743981544235,0.012921,77390.0,77380.0,0.12290297]
[1743981544456,0.258422,77393.0,77380.0,0.39428797]
[1743981544603,0.258422,77393.0,77380.0,0.12290297]
[1743981544802,0.258428,77391.0,77381.0,0.0441297]
[1743981545006,0.258404,77398.0,77384.0,0.271372]
[1743981545210,0.258404,77398.0,77385.0,0.12290297]
[1743981545432,0.012922,77382.0,77367.0,0.012925]
[1743981545631,0.258441,77387.0,77379.0,0.12290297]
[1743981545839,0.258441,77387.0,77354.0,0.012927]
[1743981545840,0.012923,77377.0,77354.0,0.012927]
[1743981545997,0.012923,77377.0,77339.0,0.0491]
[1743981545998,0.271436,77367.0,77355.0,0.00258523]
[1743981546199,0.258501,77369.0,77356.0,0.012927]
[1743981546200,0.258503,77369.0,77356.0,0.012927]
[1743981546413,0.271418,77371.0,77355.0,0.012927]
[1743981546414,0.2714,77377.0,77361.0,0.012926]
[1743981546618,0.258486,77374.0,77365.0,0.12306997]
[1743981546841,0.258479,77376.0,77365.0,0.13537697]
[1743981547041,0.012924,77371.0,77365.0,0.13851289]
[1743981547309,0.258505,77368.0,77365.0,0.00330292]
[1743981547518,0.258505,77368.0,77365.0,0.00030292]
[1743981547519,0.012925,77366.0,77365.0,0.00030292]
[1743981548275,0.00972222,77368.0,77365.0,0.00030292]
[1743981548471,0.261479,77377.0,77365.0,0.00030292]
[1743981548671,0.00981634,77376.0,77366.0,0.012925]
[1743981549010,0.003,77377.0,77373.0,0.012924]
[1743981549011,0.001,77374.0,77373.0,0.012924]
[1743981549214,0.001,77374.0,77367.0,0.42409606]
[1743981549215,0.001,77374.0,77367.0,0.42409506]
[1743981549419,0.001,77371.0,77369.0,0.271426]
[1743981549623,0.012921,77392.0,77377.0,0.012923]
[1743981549827,0.012921,77391.0,77377.0,0.012923]
[1743981550052,0.012921,77391.0,77370.0,0.12290297]
[1743981550053,0.012921,77389.0,77370.0,0.12290297]
[1743981550286,0.25848,77376.0,77370.0,0.12290297]
[1743981550485,0.012922,77384.0,77370.0,0.12290297]
[1743981550486,0.00990851,77392.0,77370.0,0.12290297]
[1743981550622,0.68691529,77401.0,77386.0,0.012922]
[1743981550836,0.41559929,77401.0,77400.0,0.012919]
[1743981551037,0.012917,77414.0,77401.0,0.271313]
[1743981551236,0.01292,77399.0,77383.0,0.258454]
[1743981551419,0.012921,77393.0,77384.0,0.12290297]
[1743981551619,0.012921,77391.0,77384.0,0.12290297]
[1743981551862,0.01292,77397.0,77384.0,0.12290297]
[1743981552037,0.01292,77396.0,77385.0,0.0381368]
[1743981552374,0.01292,77397.0,77385.0,0.16103977]
[1743981552581,0.001,77393.0,77385.0,0.16103977]
[1743981553035,0.012922,77386.0,77384.0,0.005]
[1743981553271,0.012922,77386.0,77371.0,0.012924]
[1743981553272,0.258448,77385.0,77371.0,0.012924]
[1743981553500,0.27137,77385.0,77372.0,0.13582697]
[1743981553751,0.27137,77385.0,77373.0,0.012924]
[1743981554004,0.012924,77374.0,77361.0,0.012926]
[1743981554187,0.012924,77374.0,77347.0,0.93124]
[1743981554188,0.012925,77366.0,77339.0,0.0498]
[1743981554338,0.012925,77366.0,77365.0,0.00030292]
[1743981554740,0.02447932,77366.0,77365.0,0.00030292]
[1743981555101,0.28299032,77366.0,77365.0,0.00030292]
[1743981555502,0.49801569,77366.0,77365.0,0.00030292]
[1743981555703,0.40387744,77366.0,77365.0,0.00030292]
[1743981555903,0.74387744,77366.0,77365.0,0.00030292]
[1743981556524,0.74687744,77366.0,77365.0,0.00030292]
[1743981556752,0.74487744,77366.0,77365.0,0.00030292]
[1743981556954,0.74387744,77366.0,77365.0,0.00030292]
[1743981557160,0.87177512,77366.0,77365.0,0.00030292]
[1743981557377,0.76442044,77366.0,77365.0,0.00030292]
[1743981557894,0.76942044,77366.0,77365.0,0.00030292]
[1743981558119,0.01293,77336.0,77335.0,0.0001671]
[1743981558454,0.14737597,77336.0,77335.0,0.0001671]
[1743981558663,0.03459663,77336.0,77335.0,0.0001671]
[1743981559263,0.03473282,77336.0,77335.0,0.0001671]
[1743981559468,0.00013619,77336.0,77335.0,0.0001671]
[1743981559687,0.00213619,77336.0,77335.0,0.0001671]
[1743981559890,0.00213619,77336.0,77335.0,0.04988725]
[1743981560145,0.00013619,77336.0,77335.0,0.04988725]
[1743981560357,0.00313619,77336.0,77335.0,0.0001671]
[1743981560579,0.00313619,77336.0,77335.0,0.0011671]
[1743981560799,0.00413619,77336.0,77335.0,0.13700007]
[1743981561197,0.00413619,77336.0,77335.0,0.13958596]
[1743981561404,0.41559929,77370.0,77361.0,0.012926]
[1743981561639,0.012923,77376.0,77362.0,0.13582897]
[1743981561846,0.00013645,77370.0,77362.0,0.13582897]
[1743981562080,0.012926,77360.0,77344.0,0.012929]
[1743981562268,0.41559929,77368.0,77354.0,0.012927]
[1743981562465,0.41559929,77368.0,77335.0,0.12306478]
[1743981562466,0.271465,77359.0,77355.0,0.0271495]
[1743981562697,0.012925,77364.0,77346.0,0.012928]
[1743981563023,0.258533,77360.0,77347.0,0.12290297]
[1743981563140,0.012925,77366.0,77349.0,0.012928]
[1743981563347,0.012926,77361.0,77350.0,0.12290297]
[1743981563736,0.271443,77364.0,77350.0,0.12290297]
[1743981563957,0.012925,77365.0,77350.0,0.12290297]
[1743981563958,0.01152233,77363.0,77351.0,0.0549538]
[1743981564165,0.001,77360.0,77359.0,0.012926]
[1743981564373,0.001,77360.0,77355.0,0.258545]
[1743981564595,0.01152233,77363.0,77358.0,0.012926]
[1743981565030,0.01152233,77363.0,77356.0,0.012927]
[1743981565330,0.012926,77361.0,77354.0,0.001]
[1743981565508,0.012925,77366.0,77354.0,0.001]
[1743981565912,0.001,77364.0,77354.0,0.001]
[1743981566122,0.001,77364.0,77355.0,0.0285416]
[1743981566484,0.001,77364.0,77354.0,0.001]
[1743981566485,0.001,77361.0,77354.0,0.001]
[1743981566705,0.001,77361.0,77353.0,0.012927]
[1743981566909,0.41559929,77368.0,77363.0,0.258521]
[1743981567065,0.00013645,77370.0,77366.0,0.012925]
[1743981567270,0.00013645,77370.0,77367.0,0.0542898]
[1743981567758,0.00013645,77370.0,77358.0,0.001]
[1743981567759,0.012926,77359.0,77358.0,0.001]
[1743981568383,0.271448,77363.0,77335.0,0.00275291]
[1743981568588,0.258514,77365.0,77348.0,0.012928]
[1743981568816,0.258522,77363.0,77353.0,0.002]
[1743981569014,0.258529,77361.0,77354.0,0.040933]
[1743981569233,0.258529,77361.0,77353.0,0.12290297]
[1743981569418,0.258529,77361.0,77334.0,0.45854043]
[1743981569419,0.258562,77351.0,77334.0,0.71715843]
[1743981569648,0.271457,77360.0,77334.0,0.71715843]
[1743981569649,0.012927,77357.0,77340.0,0.258596]
[1743981569922,0.258555,77353.0,77341.0,0.19080868]
[1743981570232,0.258557,77353.0,77341.0,0.19080868]
[1743981570432,0.012926,77363.0,77343.0,0.012929]
[1743981570768,0.25863545,77370.0,77355.0,0.271474]
[1743981570983,0.258508,77367.0,77356.0,0.055589]
[1743981571151,0.27156045,77370.0,77355.0,0.12290297]
[1743981571356,0.00013645,77370.0,77361.0,0.012926]
[1743981571607,0.00013645,77370.0,77362.0,0.12290297]
[1743981572354,0.258501,77369.0,77362.0,0.12290297]
[1743981572555,0.258501,77369.0,77347.0,0.012928]
[1743981572556,0.012925,77366.0,77347.0,0.012928]
[1743981572766,0.012925,77366.0,77349.0,0.012928]
[1743981572966,0.00013645,77370.0,77362.0,0.002]
[1743981573169,0.00013645,77370.0,77362.0,0.12490297]
[1743981573402,0.271443,77365.0,77346.0,0.271503]
[1743981573599,0.012926,77359.0,77350.0,0.183232]
[1743981573812,0.271457,77360.0,77350.0,0.12290297]
[1743981574015,0.258532,77360.0,77350.0,0.12290297]
[1743981574424,0.012926,77363.0,77350.0,0.12290297]
[1743981574425,0.25854,77358.0,77350.0,0.12290297]
[1743981574636,0.258521,77363.0,77350.0,0.12290297]
[1743981574887,0.41559929,77368.0,77353.0,0.258553]
[1743981575036,0.258525,77362.0,77354.0,0.16389261]
[1743981575295,0.258525,77362.0,77354.0,0.12290297]
[1743981575672,0.258538,77358.0,77354.0,0.12290297]
[1743981575868,0.012926,77358.0,77349.0,0.006]
[1743981576077,0.258556,77353.0,77350.0,0.12290297]
[1743981576283,0.012929,77344.0,77335.0,0.0001671]
[1743981576455,0.258599,77340.0,77336.0,0.04970336]
[1743981576654,0.012929,77342.0,77336.0,0.04970336]
[1743981576854,0.012929,77344.0,77336.0,0.04970336]
[1743981577246,0.516954,77377.0,77338.0,0.258605]
[1743981577411,0.516954,77377.0,77336.0,0.04970336]
[1743981577412,0.41559929,77370.0,77367.0,0.258508]
[1743981577615,0.258448,77385.0,77369.0,0.271426]
[1743981577769,0.012922,77386.0,77367.0,0.12290297]
[1743981577770,0.258465,77380.0,77367.0,0.12290297]
[1743981577974,0.012923,77378.0,77367.0,0.12290297]
[1743981578201,0.012923,77378.0,77359.0,0.012926]
[1743981578202,0.258484,77374.0,77359.0,0.012926]
[1743981578400,0.271418,77372.0,77360.0,0.15721587]
[1743981578785,0.012924,77375.0,77360.0,0.15721587]
[1743981578786,0.012924,77375.0,77361.0,0.271454]
[1743981579141,0.00013645,77372.0,77362.0,0.13582897]
[1743981579340,0.00013645,77372.0,77362.0,0.12290297]
[1743981579544,0.00013645,77372.0,77365.0,0.012925]
[1743981579692,0.00013645,77372.0,77366.0,0.04525673]
[1743981579693,0.00113645,77372.0,77366.0,0.04525673]
[1743981579899,0.00113645,77372.0,77366.0,0.012925]
[1743981580308,0.00113645,77372.0,77371.0,0.012924]
[1743981580512,0.00113645,77372.0,77367.0,0.12290297]
[1743981580706,0.00113645,77372.0,77365.0,0.258513]
[1743981580707,0.10013645,77372.0,77365.0,0.258513]
[1743981580911,0.10013645,77372.0,77366.0,0.0574917]
[1743981581133,0.10013645,77372.0,77368.0,0.012925]
[1743981581334,0.10013645,77372.0,77369.0,0.13582797]
[1743981581550,0.10013645,77372.0,77369.0,0.12290297]
[1743981581756,0.10013645,77372.0,77369.0,0.13582797]
[1743981581957,0.10013645,77372.0,77355.0,0.258547]
[1743981582158,0.10013645,77372.0,77362.0,0.001]
[1743981582361,0.10013645,77372.0,77363.0,0.012926]
[1743981582536,0.10013645,77372.0,77363.0,0.271447]
[1743981582743,0.10013645,77372.0,77365.0,0.271438]
[1743981582962,0.10013645,77372.0,77366.0,0.07130269]
[1743981583159,0.10013645,77372.0,77369.0,0.002]
[1743981583729,0.10013645,77372.0,77366.0,0.07130269]
[1743981583930,0.10013645,77372.0,77365.0,0.002]
[1743981584328,0.10013645,77372.0,77371.0,0.012924]
[1743981584524,0.10013645,77372.0,77371.0,0.13582697]
[1743981584952,0.10013645,77372.0,77371.0,0.52302697]
[1743981585151,0.1,77378.0,77377.0,0.271397]
[1743981585414,0.1,77378.0,77377.0,0.56815328]
[1743981586235,0.1,77378.0,77377.0,0.59229124]
[1743981586385,0.1,77378.0,77377.0,0.59829124]
[1743981586624,0.1,77378.0,77377.0,0.57415328]
[1743981586790,0.1,77378.0,77377.0,0.58015328]
[1743981587442,0.112923,77378.0,77377.0,0.012]
[1743981587580,0.1,77378.0,77377.0,0.012]
[1743981588253,0.1,77378.0,77377.0,0.006]
[1743981588635,0.1,77378.0,77368.0,0.271429]
[1743981588845,0.1,77378.0,77369.0,0.0568715]
[1743981589043,0.012924,77370.0,77355.0,0.258546]
[1743981589248,0.012925,77369.0,77360.0,0.00013645]
[1743981589630,0.012924,77374.0,77360.0,0.00013645]
[1743981589844,0.1,77378.0,77366.0,0.012925]
[1743981590043,0.1,77378.0,77367.0,0.012925]
[1743981590256,0.012926,77361.0,77360.0,0.00013645]
[1743981590453,0.271454,77361.0,77360.0,0.00013645]
[1743981590655,1.14995626,77361.0,77360.0,0.00013645]
[1743981591333,0.271515,77344.0,77334.0,0.45854043]
[1743981591665,0.258574,77348.0,77334.0,0.45854043]
[1743981591871,0.41559929,77352.0,77340.0,0.258597]
[1743981592281,0.41559929,77352.0,77345.0,0.012929]
[1743981592480,0.41559929,77352.0,77346.0,0.12290297]
[1743981592688,0.00113632,77361.0,77360.0,0.006]
[1743981592917,0.00013632,77361.0,77360.0,0.14182897]
[1743981593074,0.00013632,77361.0,77360.0,0.58979438]
[1743981593275,0.1,77378.0,77377.0,0.271397]
[1743981593487,0.1,77378.0,77377.0,0.39429997]
[1743981593679,0.00982081,77436.0,77399.0,0.271321]
[1743981593879,0.41559929,77443.0,77399.0,0.271321]
[1743981593880,0.41559929,77443.0,77412.0,0.012917]
[1743981594182,0.00047067,77413.0,77412.0,0.42087359]
[1743981594381,0.0003342,77450.0,77412.0,0.42087359]
[1743981594382,0.0003342,77450.0,77423.0,0.271237]
[1743981594675,0.0003342,77450.0,77423.0,0.39413997]
[1743981594847,0.0003342,77450.0,77428.0,0.611219]
[1743981595051,0.0003342,77450.0,77428.0,0.90861568]
[1743981595419,0.258235,77449.0,77428.0,0.31031168]
[1743981595593,0.258296,77431.0,77428.0,0.02411352]
[1743981595729,0.0003342,77450.0,77428.0,0.02411352]
[1743981595932,0.0003342,77450.0,77428.0,0.15993149]
[1743981596155,0.0003342,77450.0,77428.0,0.1384005]
[1743981596353,0.0003342,77450.0,77428.0,0.13581797]
[1743981596573,0.258296,77432.0,77428.0,0.006]
[1743981596775,0.012915,77428.0,77412.0,0.012917]
[1743981596993,0.012915,77427.0,77413.0,0.17845167]
[1743981597193,0.012914,77430.0,77428.0,0.006]
[1743981597395,0.0342492,77429.0,77414.0,0.00258323]
[1743981597619,0.0213342,77429.0,77428.0,0.006]
[1743981597755,0.0213342,77429.0,77428.0,0.13490297]
[1743981597966,0.0213342,77429.0,77428.0,0.14368487]
[1743981598167,0.0213342,77429.0,77428.0,0.0207819]
[1743981598508,0.0213342,77429.0,77428.0,0.006]
[1743981598509,0.0342492,77429.0,77428.0,0.006]
[1743981598914,0.0213342,77429.0,77428.0,0.006]
[1743981599071,0.0213342,77429.0,77428.0,0.14181797]
[1743981599279,0.0213342,77429.0,77428.0,0.14640073]
[1743981599478,0.0213342,77429.0,77428.0,0.22562084]
[1743981599727,0.0213342,77429.0,77428.0,0.39612197]
[1743981599926,0.0213342,77429.0,77428.0,0.13781797]
[1743981600305,0.0342492,77429.0,77428.0,0.002]
[1743981600524,0.0213342,77429.0,77426.0,0.02394639]
[1743981600692,0.0213342,77429.0,77428.0,0.006]
[1743981600895,0.0213342,77429.0,77420.0,0.012916]
[1743981601135,0.0213342,77429.0,77421.0,0.15131987]
[1743981601309,0.012915,77424.0,77405.0,0.258378]
[1743981601512,0.012915,77427.0,77409.0,0.271283]
[1743981601791,0.012915,77427.0,77409.0,0.39418597]
[1743981601972,0.012915,77425.0,77409.0,0.12290297]
[1743981602142,0.0213342,77429.0,77426.0,0.012915]
[1743981602583,0.0213342,77429.0,77428.0,0.061615]
[1743981602736,0.0213342,77429.0,77428.0,0.18451797]
[1743981602938,0.000334,77444.0,77428.0,0.53905882]
[1743981603165,0.0003342,77450.0,77449.0,0.012911]
[1743981603384,2e-07,77450.0,77449.0,0.9428742]
[1743981603602,0.000334,77460.0,77459.0,0.258201]
[1743981603766,0.0003358,77482.0,77481.0,0.271033]
[1743981604129,0.0003358,77482.0,77481.0,0.47971661]
[1743981604296,0.1,77500.0,77488.0,0.271009]
[1743981604477,0.1,77500.0,77488.0,0.40912105]
[1743981604801,0.00279092,77489.0,77488.0,0.40912105]
[1743981605000,0.00279092,77489.0,77488.0,0.43301559]
[1743981605906,0.00279092,77489.0,77488.0,0.43901559]
[1743981606731,1e-06,77491.0,77490.0,0.017904]
[1743981606875,0.1,77500.0,77496.0,0.62552085]
[1743981607076,0.0003358,77504.0,77503.0,0.025]
[1743981607077,8e-07,77504.0,77503.0,0.025]
[1743981607281,0.1,77544.0,77518.0,0.270904]
[1743981607479,0.1,77544.0,77518.0,0.45930345]
[1743981607727,0.1,77544.0,77532.0,0.012897]
[1743981607881,0.012896,77543.0,77532.0,0.1738586]
[1743981608081,0.012897,77532.0,77518.0,0.12450758]
[1743981608287,0.10013656,77533.0,77532.0,0.02389454]
[1743981608530,0.10013656,77533.0,77532.0,0.15969451]
[1743981608730,0.10013656,77533.0,77532.0,0.16227371]
[1743981609064,0.1,77544.0,77543.0,0.270817]
[1743981609200,0.1,77544.0,77543.0,0.86402374]
[1743981609401,0.002,77549.0,77548.0,0.270799]
[1743981609744,0.002,77549.0,77548.0,0.39370197]
[1743981610070,0.002,77549.0,77548.0,0.14679751]
[1743981610191,0.002,77549.0,77548.0,0.15969251]
[1743981610391,0.002,77549.0,77548.0,0.13579797]
[1743981610593,0.002,77549.0,77548.0,0.14179797]
[1743981611003,0.002,77549.0,77548.0,0.13579797]
[1743981611197,0.002,77549.0,77548.0,0.14179797]
[1743981611419,0.002,77549.0,77548.0,0.12890297]
[1743981611999,0.002,77549.0,77548.0,0.006]
[1743981612197,0.014895,77549.0,77548.0,0.012]
[1743981612432,0.014895,77549.0,77500.0,0.012903]
[1743981612433,0.257987,77523.0,77500.0,0.012903]
[1743981612633,0.34,77548.0,77519.0,0.270901]
[1743981612634,0.257943,77537.0,77519.0,0.270901]
[1743981612805,0.12490297,77549.0,77533.0,0.012897]
[1743981612806,0.002,77549.0,77533.0,0.012897]
[1743981613034,0.002,77549.0,77529.0,0.012898]
[1743981613035,0.012896,77543.0,77534.0,0.12290297]
[1743981613238,0.012896,77539.0,77520.0,0.00013656]
[1743981613440,0.012897,77536.0,77520.0,0.12303953]
[1743981613644,0.257948,77535.0,77521.0,0.13778668]
[1743981613852,0.012895,77544.0,77524.0,0.012899]
[1743981614054,0.257904,77548.0,77528.0,0.270867]
[1743981614260,0.014895,77549.0,77529.0,0.12548239]
[1743981614261,0.002,77549.0,77529.0,0.12548239]
[1743981614458,0.25794,77538.0,77529.0,0.12290297]
[1743981614703,0.002,77549.0,77529.0,0.12290297]
[1743981614704,0.002,77549.0,77537.0,0.012897]
[1743981614927,0.257931,77541.0,77530.0,0.0122903]
[1743981615100,0.257931,77541.0,77531.0,0.12290297]
[1743981615657,0.257931,77541.0,77529.0,0.006]
[1743981615658,0.012898,77530.0,77529.0,0.006]
[1743981615800,0.270893,77521.0,77520.0,0.00013656]
[1743981615997,0.39379597,77521.0,77520.0,0.00013656]
[1743981616408,0.39379597,77521.0,77520.0,5.6e-07]
[1743981616409,0.76100523,77521.0,77520.0,5.6e-07]
[1743981616609,0.271064,77472.0,77460.0,0.0462]
[1743981616851,0.012905,77484.0,77471.0,0.12490297]
[1743981617056,0.012906,77478.0,77471.0,0.002]
[1743981617267,0.012906,77481.0,77471.0,0.002]
[1743981617417,0.012907,77472.0,77471.0,0.002]
[1743981617620,0.67667204,77500.0,77471.0,0.002]
[1743981617923,0.001,77472.0,77471.0,0.13190297]
[1743981618148,0.259157,77472.0,77471.0,0.009]
[1743981618441,0.39396697,77472.0,77471.0,0.002]
[1743981618636,0.73396697,77472.0,77471.0,0.002]
[1743981618842,0.73496697,77472.0,77471.0,0.005]
[1743981619574,0.00113603,77472.0,77471.0,0.005]
[1743981619981,0.01304303,77472.0,77471.0,0.002]
[1743981620299,0.01404303,77472.0,77471.0,0.002]
[1743981620529,0.00013603,77472.0,77471.0,0.47944382]
[1743981620772,0.258039,77508.0,77471.0,0.47944382]
[1743981620773,0.012902,77504.0,77485.0,0.012905]
[1743981620923,0.02047197,77527.0,77473.0,0.012907]
[1743981620924,0.270996,77492.0,77473.0,0.012907]
[1743981621138,0.270955,77504.0,77483.0,0.258119]
[1743981621505,0.270955,77504.0,77479.0,0.012906]
[1743981621506,0.012903,77498.0,77484.0,0.12290297]
[1743981621731,0.258066,77500.0,77484.0,0.12548382]
[1743981621931,0.270872,77528.0,77507.0,0.012902]
[1743981622149,0.270908,77517.0,77507.0,0.12290297]
[1743981622361,0.258006,77518.0,77507.0,0.12290297]
[1743981622557,0.0129,77519.0,77507.0,0.12290297]
[1743981622778,0.257978,77526.0,77507.0,0.12290297]
[1743981622779,0.012897,77534.0,77507.0,0.39384597]
[1743981623013,0.257946,77536.0,77507.0,0.39384597]
[1743981623160,0.012897,77533.0,77507.0,0.39384597]
[1743981623693,0.258036,77509.0,77507.0,0.12290297]
[1743981623898,0.0129,77518.0,77497.0,0.012903]
[1743981624093,0.258007,77518.0,77507.0,0.003]
[1743981624318,0.270898,77520.0,77507.0,0.0303957]
[1743981624583,0.012896,77539.0,77507.0,0.16620067]
[1743981624713,0.67667204,77550.0,77507.0,0.16620067]
[1743981624714,1.34539929,77551.0,77536.0,0.012897]
[1743981624912,0.1,77556.0,77537.0,0.12290297]
[1743981625121,0.1,77556.0,77548.0,0.270799]
[1743981625122,0.00213629,77549.0,77548.0,0.270799]
[1743981625326,0.00213629,77549.0,77548.0,0.43221595]
[1743981625803,0.00213629,77549.0,77548.0,0.77221595]
[1743981625960,9.9e-07,77552.0,77551.0,0.610788]
[1743981626179,9.9e-07,77552.0,77551.0,0.7846466]
[1743981626384,9.9e-07,77552.0,77551.0,0.73369097]
[1743981626744,9.9e-07,77552.0,77551.0,0.12290297]
[1743981626944,9.9e-07,77552.0,77536.0,0.012897]
[1743981627143,9.9e-07,77552.0,77544.0,0.012895]
[1743981627278,9.9e-07,77552.0,77545.0,0.12290297]
[1743981627485,0.270788,77551.0,77540.0,0.00013629]
[1743981627700,0.012895,77545.0,77540.0,0.00013629]
[1743981627966,0.012896,77541.0,77540.0,0.00013629]
[1743981628182,0.13579897,77541.0,77540.0,0.00013629]
[1743981628936,0.012896,77541.0,77540.0,0.00613629]
[1743981629161,0.012896,77542.0,77540.0,0.00013629]
[1743981629359,0.270824,77541.0,77540.0,0.00013629]
[1743981629563,0.41559929,77562.0,77540.0,0.00013629]
[1743981629763,0.025,77571.0,77550.0,0.270791]
[1743981629764,0.1,77567.0,77550.0,0.270791]
[1743981629982,0.257853,77564.0,77551.0,0.12548158]
[1743981630312,0.1,77567.0,77551.0,0.13837558]
[1743981630824,0.00400099,77552.0,77551.0,0.13837558]
[1743981631227,9.9e-07,77552.0,77551.0,0.13837558]
[1743981631639,0.1,77567.0,77555.0,0.012894]
[1743981631839,0.1,77567.0,77555.0,0.74821882]
[1743981632277,0.1,77567.0,77566.0,0.73363897]
[1743981632516,0.1,77567.0,77566.0,0.39363897]
[1743981633269,0.1,77567.0,77557.0,0.012893]
[1743981633270,0.1,77567.0,77555.0,0.006]
[1743981633472,0.012893,77556.0,77555.0,0.006]
[1743981633612,0.270759,77560.0,77555.0,0.006]
[1743981633818,0.00766126,77559.0,77555.0,0.006]
[1743981634041,0.012893,77556.0,77555.0,0.006]
[1743981634429,0.012897,77536.0,77515.0,0.0627]
[1743981634598,0.012896,77542.0,77524.0,0.012899]
[1743981634599,0.270823,77542.0,77524.0,0.012899]
[1743981634805,0.270823,77542.0,77525.0,0.12290297]
[1743981635022,0.00822848,77541.0,77530.0,0.012898]
[1743981635151,0.00822848,77541.0,77515.0,0.0498]
[1743981635152,0.00822848,77541.0,77540.0,0.012896]
[1743981635356,0.002,77560.0,77547.0,0.012895]
[1743981635559,0.002,77560.0,77551.0,0.012894]
[1743981635806,0.00822848,77559.0,77552.0,0.13579697]
[1743981635960,0.002,77560.0,77552.0,0.12290297]
[1743981636158,0.002,77560.0,77553.0,0.05207163]
[1743981636403,0.00822848,77559.0,77547.0,0.270802]
[1743981636621,0.00822848,77559.0,77550.0,0.012894]
[1743981636924,0.012892,77565.0,77550.0,0.12290297]
[1743981637124,0.26607948,77564.0,77550.0,0.12290297]
[1743981637505,0.257858,77562.0,77550.0,0.12290297]
[1743981637707,0.012895,77547.0,77525.0,0.257979]
[1743981637905,0.270817,77543.0,77528.0,0.012898]
[1743981638106,0.270806,77546.0,77531.0,0.012898]
[1743981638307,0.00822848,77545.0,77532.0,0.12290297]
[1743981638872,0.00822848,77545.0,77536.0,0.012897]
[1743981639077,0.34,77560.0,77550.0,0.27079]
[1743981639407,0.00822848,77558.0,77557.0,0.257874]
[1743981639661,0.00822848,77558.0,77557.0,0.270767]
[1743981639873,0.003,77562.0,77561.0,0.270754]
[1743981640052,0.1,77567.0,77566.0,0.270736]
[1743981640211,0.1,77567.0,77566.0,0.41733663]
[1743981640609,0.1,77567.0,77566.0,0.14660063]
[1743981640867,0.1,77567.0,77539.0,0.012896]
[1743981640868,0.012893,77560.0,77539.0,0.012896]
[1743981641076,0.1,77567.0,77540.0,0.12290297]
[1743981641077,0.25791,77547.0,77540.0,0.12290297]
[1743981641205,0.257892,77552.0,77540.0,0.12290297]
[1743981641406,0.10045402,77567.0,77564.0,0.012892]
[1743981641604,0.10045402,77567.0,77565.0,0.12548107]
[1743981641852,0.10045402,77567.0,77566.0,0.01254811]
[1743981642051,0.10045402,77567.0,77566.0,0.14834308]
[1743981642252,0.10045402,77567.0,77566.0,0.48834308]
[1743981642456,0.10045402,77567.0,77566.0,0.13545108]
[1743981643467,0.10045402,77567.0,77566.0,0.12290297]
[1743981643688,0.10045402,77567.0,77544.0,0.012895]
[1743981643689,0.012892,77563.0,77544.0,0.012895]
[1743981644011,0.012892,77563.0,77537.0,0.012897]
[1743981644012,0.257874,77557.0,77545.0,0.12290297]
[1743981644140,0.34,77580.0,77546.0,0.00257878]
[1743981644344,0.257844,77566.0,77553.0,0.012894]
[1743981644568,0.2579907,77573.0,77554.0,0.12548152]
[1743981644744,0.0001667,77573.0,77564.0,0.012892]
[1743981644948,0.0001667,77573.0,77566.0,0.008]
[1743981645149,0.0001667,77573.0,77566.0,0.13090297]
[1743981645346,0.11334602,77567.0,77566.0,0.002]
[1743981646233,0.11434602,77567.0,77566.0,0.002]
[1743981646430,0.10145402,77567.0,77566.0,0.002]
[1743981646642,0.10045402,77567.0,77566.0,0.002]
[1743981646840,0.10245402,77567.0,77555.0,0.012894]
[1743981647072,0.10245402,77567.0,77556.0,0.12290297]
[1743981647272,0.10245402,77567.0,77565.0,0.270737]
[1743981647479,0.10245402,77567.0,77566.0,0.13579497]
[1743981648120,0.10045402,77567.0,77566.0,0.12290297]
[1743981648295,0.257864,77561.0,77555.0,0.006]
[1743981648497,0.10045402,77567.0,77556.0,0.12290297]
[1743981648658,0.10045402,77567.0,77555.0,0.26388]
[1743981648659,0.257849,77565.0,77555.0,0.006]
[1743981648857,0.257854,77563.0,77545.0,0.00948163]
[1743981649058,0.012895,77548.0,77545.0,0.1323846]
[1743981649282,0.270806,77546.0,77545.0,0.00948163]